Cogmind - Beta 13 @@@ ROGUE MODE // 2024.05.03 @ 11:19:40 Player: Jason Result: Destroyed by XE-E66(R) with Subdweller Shrapnel Launcher Performance ------------- Evolutions (0) 0 Regions Visited (2) 400 Robots Destroyed (16) 80 Value Destroyed (468) 468 Prototype IDs (3) 60 Alien Tech Used (0) 0 Bonus (0) 0 TOTAL SCORE: 1008 Bonus ------- None Cogmind --------- Core Integrity 0/250 Matter 251/300 Energy 99/100 System Corruption 0% Temperature Cool (0) Movement Treading (160) Location -10/Subcaves Parts ------- > --- POWER (1) -------- (None) > --- PROPULSION (2) --- Light Treads Light Treads > --- UTILITY (2) ------ (None) > --- WEAPON (2) ------- Assault Rifle Rocket Launcher > --- INVENTORY (5) ---- Light Treads Large Matter Pod (150) Subdweller Beam Cannon Scrap Shield Fragment (44) Peak State ------------ > --- POWER ------------ Light Nuclear Core > --- PROPULSION ------- Light Treads Light Treads > --- UTILITY ---------- Scrap Shield > --- WEAPON ----------- Riot Gun Subdweller Beam Cannon > --- INVENTORY -------- Ion Engine Light Treads Large Matter Pod Structural Scanner Assault Rifle [Rating: 14] Favorites ----------- Power Ion Engine Engine Ion Engine Power Core Light Nuclear Core Propulsion Light Treads Treads Light Treads Utility Large Storage Unit Device Structural Scanner Storage Large Storage Unit Protection Scrap Shield Weapon Assault Rifle Energy Gun Riot Gun Energy Cannon Subdweller Beam Cannon Ballistic Gun Assault Rifle Ballistic Cannon Light Cannon Launcher Rocket Launcher Build | -11 -10 -10 ------- Run | Yrd Mat Sub Slots Evolved . | . . . Power . | . . . Propulsion . | . . . Utility . | . . . Weapon . | . . . Parts Attached 25 | 7 11 7 Power 5 | 1 2 2 Engine 3 | 1 1 1 Core 2 | . 1 1 Reactor . | . . . Propulsion 2 | 2 . . Treads 2 | 2 . . Leg . | . . . Wheel . | . . . Hover . | . . . Flight . | . . . Utility 10 | 2 7 1 Device 4 | 1 3 . Storage 3 | 1 2 . Processor . | . . . Hackware . | . . . Protection 3 | . 2 1 Artifact . | . . . Weapon 8 | 2 2 4 Energy Gun 1 | . . 1 Energy Cannon 1 | . . 1 Ballistic Gun 3 | 2 . 1 Ballistic Cannon 2 | . 2 . Launcher 1 | . . 1 Special Weapon . | . . . Impact Weapon . | . . . Slashing Weapon . | . . . Piercing Weapon . | . . . Special Melee Weapon . | . . . Unidentified Prototypes . | . . . Parts Lost 3 | . . 3 Power 1 | . . 1 Propulsion . | . . . Utility 1 | . . 1 Weapon 1 | . . 1 Highest Loss Streak 3 | . . 3 To Critical Strikes 1 | . . 1 Average Slot Usage (%) 95 | . 99 86 Engine 8 | . 9 4 Core 5 | . 4 8 Treads 28 | . 28 28 Device 6 | . 9 2 Storage 10 | . 14 2 Protection 6 | . 4 11 Energy Gun 3 | . . 12 Energy Cannon 3 | . . 10 Ballistic Gun 10 | . 14 1 Ballistic Cannon 10 | . 13 3 Naked Turns . | . . . Heaviest Build 35 | 15 35 34 Greatest Support 40 | 40 40 40 Greatest Overweight (x) . | . . . Average Overweight (x) . | . . . Largest Inventory Capacity 15 | 8 15 15 Average Capacity 11 | 7 13 6 Most Carried 15 | 6 15 15 Average Carried 10 | 4 12 6 Final Capacity 15 | 8 15 5 Final Carried 15 | 6 15 4 Class Distribution -------------------- 88% | Mutant 11% | Subdweller-Mutant Dominant Class ---------------- Mutant | -10/Materials Mutant | -10/Subcaves Resources | -11 -10 -10 ----------- Run | Yrd Mat Sub Matter Collected 844 | 225 507 112 Remotely . | . . . Salvage Created 455 | 12 276 167 Parts 34 | 4 18 12 Haulers Intercepted . | . . . Recyclers Shooed . | . . . Parts Field Recycled . | . . . Retrieved Matter . | . . . Parts Self-Destructed 9 | . . 9 Prevented . | . . . Kills | -11 -10 -10 ------- Run | Yrd Mat Sub Combat Hostiles Destroyed 14 | . 9 5 Guns 5 | . 4 1 Cannons 6 | . 5 1 AOE 3 | . . 3 Classes Destroyed 5 | 1 3 1 Worker 1 | . 1 . Tunneler 1 | 1 . . Swarmer 3 | . 3 . Grunt 6 | . 6 . Subdweller 5 | . . 5 Best Kill Streak 4 | 1 3 4 Combat Bots Only 4 | . 3 4 Max Kills in Single Turn 2 | 1 2 1 Gunslinging . | . . . Exploded 1 | . . 1 Melee . | . . . Uniques/NPCs Destroyed . | . . . Combat | -11 -10 -10 -------- Run | Yrd Mat Sub Hostile Shots Fired 80 | . 44 36 Missed 18 | . 10 8 Damage Taken 1091 | . 412 679 Core 277 | . 58 219 Absorbed by Shields . | . . . Regen/Repaired (Parts) 150 | . 150 . Core Remaining (%) 100 | 100 . . Volleys Fired 57 | 1 32 24 Largest 2 | 2 2 2 Hottest 130 | 40 55 130 Shots Fired 88 | 2 60 26 Gun 42 | 2 28 12 Cannon 43 | . 32 11 Launcher 3 | . . 3 Special . | . . . Kinetic 70 | 2 60 8 Thermal 10 | . . 10 Explosive 3 | . . 3 Electromagnetic 5 | . . 5 Robot Hit Streak 10 | 1 9 10 Robot Miss Streak 3 | . 3 2 Penetration Max . | . . . Secondary Targets . | . . . Shots Hit Robots 50 | 1 35 14 Core Hits 28 | 1 17 10 Critical Kills . | . . . Critical Parts Destroyed . | . . . Critical Strikes 1 | . 1 . Blast 1 | . 1 . Melee Attacks . | . . . Impact . | . . . Slashing . | . . . Piercing . | . . . Sneak Attacks . | . . . Combat Hostiles . | . . . Follow-up Attacks . | . . . Damage Inflicted 1134 | 12 613 509 Guns 439 | 12 261 166 Cannons 360 | . 331 29 Explosions 314 | . . 314 Melee . | . . . Ramming 21 | . 21 . Kinetic 695 | 12 592 91 Thermal 29 | . . 29 Explosive 314 | . . 314 Electromagnetic 75 | . . 75 Impact . | . . . Slashing . | . . . Piercing . | . . . Highest Corruption . | . . . Average Corruption . | . . . Corruption Purged . | . . . Corruption Blocked . | . . . Overload Shots . | . . . Overflow Damage . | . . . Projectiles . | . . . Explosions . | . . . Melee . | . . . Knockbacks 5 | . 5 . Impact 1 | . 1 . Kinetic 3 | . 3 . Secondary 1 | . 1 . Self-Inflicted Damage 45 | . . 45 Shots 2 | . . 2 Rammed 2 | . 2 . Targets Rammed 2 | . 2 . Kicked . | . . . Crushed . | . . . Highest Temperature 207 | . 207 27 Average Temperature 60 | . 68 9 Received Heat Transfer 348 | . 216 132 Siege Activations . | . . . Robots Corrupted . | . . . Combat Hostiles . | . . . Parts Fried . | . . . Impact Corruptions . | . . . Robots Melted . | . . . Combat Hostiles . | . . . Parts Melted . | . . . Heat Transferred 37 | . . 37 Parts Sabotaged . | . . . Parts Stolen . | . . . Parts Stripped . | . . . Power Chain Reactions . | . . . Alert | -11 -10 -10 ------- Run | Yrd Mat Sub Peak Influence 139 | 5 139 . Initial 3 | . 3 . Average 25 | 1 26 . Maximum Alert Level . | . . . Low Security (%) 100 | 100 100 . Level 1 . | . . . Level 2 . | . . . Level 3 . | . . . Level 4 . | . . . Level 5 . | . . . High Security . | . . . Max Security . | . . . Squads Dispatched 1 | . 1 . Investigation . | . . . Extermination . | . . . Reinforcement 1 | . 1 . Assault . | . . . Garrison . | . . . Intercept . | . . . Searches Triggered . | . . . Construction Impeded . | . . . Haulers Reinforced . | . . . Active Scanning Responses . | . . . Cargo Convoy Interrupts . | . . . Stealth | -11 -10 -10 --------- Run | Yrd Mat Sub Distress Signals 3 | . 3 . Communications Jammed . | . . . Distress Signals . | . . . Times Spotted 27 | . 21 6 Peak Tracking Total 6 | . 6 5 Tactical Retreats . | . . . Traps | -11 -10 -10 ------- Run | Yrd Mat Sub Traps Triggered . | . . . Indirectly . | . . . Trap Hack Attempts . | . . . Triggered . | . . . Disarmed . | . . . Reprogrammed . | . . . Reused . | . . . Traps Extracted . | . . . Installed . | . . . Triggered . | . . . Most Traps Carried 1 | . . 1 Machines | -11 -10 -10 ---------- Run | Yrd Mat Sub Machines Disabled . | . . . Max in Single Turn . | . . . Machines Repaired . | . . . Machines Dismantled . | . . . Machines Sabotaged . | . . . Overloaded Fab Kills . | . . . Hacking | -11 -10 -10 --------- Run | Yrd Mat Sub Machines Accessed 8 | . 8 . Terminals 7 | . 7 . Fabricators . | . . . Repair Stations 1 | . 1 . Recycling Units . | . . . Scanalyzers . | . . . Garrison Access . | . . . Total Hacks 29 | . 29 . Successful 16 | . 16 . Failed 13 | . 13 . Catastrophic 4 | . 4 . Database Lockouts . | . . . Manual 18 | . 18 . Terminals 25 | . 25 . Fabricators . | . . . Repair Stations 4 | . 4 . Recycling Units . | . . . Scanalyzers . | . . . Garrison Access . | . . . Terminal Hacks 9 | . 9 . Record 1 | . 1 . Part Schematic 1 | . 1 . Prototype ID Bank 2 | . 2 . Level Access Points 1 | . 1 . Branch Access Points 1 | . 1 . Machine Index 1 | . 1 . Terminal Index 1 | . 1 . Locate Traps 1 | . 1 . Fabricator Hacks . | . . . Repair Station Hacks 4 | . 4 . Scan Component 2 | . 2 . Repair 2 | . 2 . Recycling Unit Hacks . | . . . Scanalyzer . | . . . Garrison Access Hacks . | . . . Unauthorized Hacks 3 | . 3 . Terminals 3 | . 3 . Botnet 3 | . 3 . Fabricators . | . . . Repair Stations . | . . . Recycling Units . | . . . Scanalyzers . | . . . Garrison Access . | . . . Data Cores Recovered . | . . . Used . | . . . Hacking Detections 7 | . 7 . Full Trace Events . | . . . Feedback Events . | . . . Feedback Blocked . | . . . Robot Schematics Acquired . | . . . Robots Built . | . . . Authchips . | . . . Time . | . . . Total Robot Build Rating . | . . . Part Schematics Acquired 1 | . 1 . Parts Built . | . . . Authchips . | . . . Time . | . . . Total Part Build Rating . | . . . Parts Repaired 2 | . 2 . Time 58 | . 58 . Parts Recycled . | . . . Recycled Matter . | . . . Retrieved Matter . | . . . Retrieved Components . | . . . Parts Scanalyzed . | . . . Part Schematics Acquired . | . . . Parts Damaged . | . . . Bothacking | -11 -10 -10 ------------ Run | Yrd Mat Sub Used RIF Installer . | . . . Robots Hacked . | . . . Non-combat . | . . . Combat . | . . . Robot Hacks Applied . | . . . Relay Couplers Released . | . . . Fabnet Peak Effective % . | . . . Robots Rewired . | . . . Allies Hacked . | . . . Hacks Repelled . | . . . Allies | -11 -10 -10 -------- Run | Yrd Mat Sub Total Allies . | . . . Largest Group . | . . . Highest-Rated Group . | . . . Highest-Rated Ally . | . . . Total Orders . | . . . Ally Attacks . | . . . Total Damage . | . . . Kills . | . . . Allies Corrupted . | . . . Allies Melted . | . . . Intel | -11 -10 -10 ------- Run | Yrd Mat Sub Robot Analysis Total . | . . . Derelict Logs Recovered 1 | . . 1 Drone Launches . | . . . Drone Recoveries . | . . . Exploration | -11 -10 -10 ------------- Run | Yrd Mat Sub Turns Passed 2823 | 92 1853 878 Spaces Moved 1585 | 49 1041 495 Core 6 | 6 . . Treads 1579 | 43 1041 495 Legs . | . . . Wheels . | . . . Hover . | . . . Flight . | . . . Fastest Speed 50 | 50 160 160 Average Speed 159 | 146 160 160 Slowest Speed 160 | 160 160 160 Overloaded Moves . | . . . Propulsion Burnouts . | . . . Robots Hopped . | . . . Cave-ins Triggered . | . . . Exploration Rate (%) 39 | 3 93 22 Regions Visited 2 Branch Regions 1 Pre-discovered Areas 1 | . . 1 Known Exits Taken . | . . . Unknown Exits Taken 2 | 1 1 . Scrap Searched . | . . . Spaces Dug . | . . . Terrain Destroyed 21 | . . 21 Melee . | . . . Projectile 2 | . . 2 AOE 19 | . . 19 Terrain Rammed . | . . . Walls Destroyed . | . . . Machines Disabled . | . . . Actions | -11 -10 -10 --------- Run | Yrd Mat Sub Total 1791 | 64 1167 560 Wait 76 | 2 62 12 Move 1583 | 48 1040 495 Hop . | . . . Pick Up 27 | 6 13 8 Fast Attach 12 | 7 1 4 Attach 2 | . . 2 Detach 1 | . . 1 Swap 11 | . 10 1 Drop 20 | . 7 13 Fire 57 | 1 32 24 Melee . | . . . Ram . | . . . Kick . | . . . Crush 2 | . 2 . Escape Stasis . | . . . Rewire . | . . . Trap . | . . . Miscellaneous . | . . . Route ------- -11/Scrapyard -10/Materials (discovered 6 exits: *Mat x3 / *Min x2 / [*Sub]) -10/Subcaves History --------- Turn | Location | Event 26 | -11/Scrapyard | Discovered new exit (range 16) 93 | -11/Scrapyard | Entered Materials 307 | -10/Materials | Build established: Mutant 518 | -10/Materials | Discovered new exit (range 14) 602 | -10/Materials | Discovered new exit (range 16) 1158 | -10/Materials | Discovered new exit (range 8) 1284 | -10/Materials | Discovered new exit (range 16) 1285 | -10/Materials | Identified exit to Mines 1532 | -10/Materials | Identified exit to Materials 1848 | -10/Materials | Repaired Lgt. Cannon 1900 | -10/Materials | Repaired Hrd. Light Armor Plating 1933 | -10/Materials | Discovered new exit (range 6) 1946 | -10/Materials | Entered Subcaves 1974 | -10/Subcaves | Learned location of Zion (-6) 1988 | -10/Subcaves | Shifting Twisted Machinery released Riot Gun 2008 | -10/Subcaves | Shifting Twisted Machinery released Piercing Trap 2060 | -10/Subcaves | Shifting Twisted Machinery released Scrap Shield 2081 | -10/Subcaves | Shifting Twisted Machinery released Sub. Beam Cannon 2174 | -10/Subcaves | A swath of the cavern ceiling suddenly collapsed 2479 | -10/Subcaves | A swath of the cavern ceiling suddenly collapsed 2621 | -10/Subcaves | Build established: Subdweller-Mutant 2776 | -10/Subcaves | A Subdweller sparked back to life 2776 | -10/Subcaves | A Subdweller sparked back to life 2776 | -10/Subcaves | A Subdweller sparked back to life 2792 | -10/Subcaves | Core integrity fell below 50% 2803 | -10/Subcaves | Core integrity fell below 20% 2824 | -10/Subcaves | Destroyed by XE-E66(R) with Subdweller Shrapnel Launcher Last Messages --------------- to move. 02776_ PP-HM7(R) creaks and sparks as it begins to move. 02784_ Sub. Beam Cannon shoots sparks and powers down. 02788_ Scrap Shield destroyed. 02793_ Critical hit (Destroy). 02793_ Riot Gun destroyed. 02797_ I2-301(R) misfires. 02798_ E9-S8L(R) destroyed. 02800_ I2-301(R) destroyed. 02802_ The unstable cave ceiling collapses. 02802_ PP-HM7(R) destroyed. 02809_ ES-QKQ(R) affixes Scrap Shield Fragment to Scrap Shield. 02809_ Acquired 30 matter. 02810_ Lgt. Nuclear Core destroyed. 02817_ ES-QKQ(R) affixes Scrap Shield Fragment to Scrap Shield. 02820_ ES-QKQ(R) destroyed. Map ----- +----------------------------------------------------+ | ??????????????????????????????###"""## ##??? | | ????????????????????????????????#"##" ##???? | | ????????????????????????????????##"# ###??? | | ??????????????????????????????????# ##?? | | ???????????????????????????######## ## #?? | | ???????????????????????????# ## ##? | | ???????????????????????????## #? | | ????????????????????????????######## #####? | | ??????????????????????????????????## #####?? | | ???????????????????????##?????????# ###*### | | ??????????????????????## ##???????# ## | | ??????????????????????? #???????#" "### !%! | | ???????????????????????? #????##### "### #### | | ????????????????????????# ??### # """# ##??## | | ???????????????????????## #### " *""""" ##???## | | ????????????????????##?# #"" """"" ####### | | ????????????????????# ?#" ##"### ### | | ????????????????????# ####### #####?## | | ?????????????????#??# ?#### # #??????# | | ??????????????#### ## ## " " #?????## | | ??????????????# ##";###"#????## ## | | ????????????? " #?###????# #### | | ?????????????????# # ## ###??????## #####??? | | ?????????????????????# #???????#####??????? | | ???????????????????### ][##??????????????????? | | ??????????????????## ## @!%!#???????????????????? | | ??????????"???????# ## [% #??????????????????? | | ?????????""" ???## *! ##??????????????????? | | ????????""" ## #???????????????????? | | ??????? " < #??????????????????? | | ?????# R ##??????????????????? | | ??????##"""" # ##???????????????????? | | ????????# " ^ # < # #????????????????????? | | ????????## " ## #???????????????????? | | ?????????###??# #???????????????????? | | ????????????? # ### ###???????????????????? | | ???????????"" ### ###??##?????????????????????? | | ???????????"" #??# #???????????????????????????? | | ???????????" ???# #???????????????????????????? | | ??????????"" ???? ????????????????????????????? | | ??????????" ???? ????????????????????????????? | | ?????????? ???? ##????????????????????????????? | | ???????????????####??????????????????????????????? | | ?????????????????????????????????????????????????? | | ?????????????????????????????????????????????????? | | ?????????????????????????????????????????????????? | | ?????????????????????????????????????????????????? | | ?????????????????????????????????????????????????? | | ?????????????????????????????????????????????????? | | ?????????????????????????????????????????????????? | +----------------------------------------------------+ Best States ------------- Heat Dissipation 25 Energy Generation 15 Energy Capacity 250 Matter Stores 300 Matter Capacity 300 Sight Range 16 Terrain Scan Density 10 Armor Coverage 800 Evasion (%) 40 Recoil Reduction 2 Item Schematics ----------------- Med. Storage Unit | -10/Materials | Hacked Robot Schematics ------------------ None Fabricated ------------ Nothing Alien Tech Used ----------------- None Achievements -------------- None Challenges ------------ None Game ------ Seed ShockLinkedExoskeleton Manual? 0 Play Time 00:24:39 Cumulative 46.2 hours Start 2024.05.02 @ 22:53:01 End 2024.05.03 @ 11:19:40 Sessions 1 Manual Loads 0 Difficulty Rogue Special Mode None Game No. 42 Rogue 42 Adventurer 0 Explorer 0 Win Type - Total 0 Types 0/0/0/0/0/0/0/0/0 Lore% 20 Gallery% 30 Achievement% 22 Wizard Run 0 Options --------- Layout 2 ASCII 0 Keyboard 1 Movement Arrows Keybinds 0 Fullscreen 2 Font 24/Smallcaps Map View 50x44 Zoom Use 0% Tactical HUD 1 Map Filters NONE Filters NONE Steam 1 RUN: 406222ca-e13f-4643-b767-d260565814ce